bitfinex-derivatives/quotes_SOLF0:USTF0_20250831
["timestamp","ask_amount","ask_price","bid_price","bid_amount"]
[1756670448303,0.02,204.64,204.56,7.2]
[1756670448505,68.405,204.65,204.56,7.2]
[1756670448700,0.02,204.64,204.56,7.2]
[1756670448910,68.405,204.65,204.56,7.2]
[1756670449304,0.02,204.64,204.56,7.2]
[1756670449499,68.405,204.65,204.56,7.2]
[1756670449707,0.02,204.64,204.56,7.2]
[1756670450208,68.405,204.65,204.56,7.2]
[1756670450409,0.02,204.64,204.56,7.2]
[1756670450610,122.12,204.63,204.56,7.2]
[1756670451710,0.02,204.64,204.56,7.2]
[1756670451915,122.06,204.63,204.56,7.2]
[1756670452212,0.02,204.64,204.5,2.7085505]
[1756670452213,122.04,204.64,204.58,7.2]
[1756670452410,68.4197,204.67,204.58,7.2]
[1756670452606,122.04,204.66,204.58,7.2]
[1756670453213,122.04,204.66,204.59,7.2]
[1756670454813,122.04,204.66,204.58,2.7085505]
[1756670454814,4.3978,204.63,204.58,2.7085505]
[1756670455014,4.3978,204.63,204.59,7.2]
[1756670455210,4.3978,204.63,204.58,2.7085505]
[1756670455414,4.3982,204.62,204.59,7.2]
[1756670455610,4.4182,204.62,204.59,7.2]
[1756670456708,0.02,204.62,204.54,7.2]
[1756670458017,2.7085505,204.63,204.54,7.2]
[1756670458213,0.02,204.62,204.54,7.2]
[1756670458413,2.7085505,204.63,204.54,7.2]
[1756670458716,4.3994,204.56,204.54,7.2]
[1756670458920,121.86,204.58,204.48,2.7085505]
[1756670459116,121.86,204.58,204.49,7.2]
[1756670459722,4.3998,204.54,204.49,7.2]
[1756670460113,4.3998,204.54,204.48,2.7085505]
[1756670460313,4.3998,204.54,204.49,7.2]
[1756670460717,4.3994,204.56,204.49,7.2]
[1756670461219,4.3994,204.56,204.49,9.9085505]
[1756670461519,121.8,204.57,204.5,7.2]
[1756670462317,126.1992,204.57,204.5,7.2]
[1756670462619,121.84,204.57,204.5,7.2]
[1756670463016,4.3994,204.56,204.5,7.2]
[1756670463320,0.04,204.56,204.5,7.2]
[1756670464016,0.04,204.56,204.47,9.9085505]
[1756670464819,4.4003,204.52,204.46,9.9085505]
[1756670465215,4.4003,204.52,204.46,7.2]
[1756670465621,0.04,204.53,204.46,7.2]
[1756670465920,67.96,204.52,204.46,7.2]
[1756670466420,98.52,204.53,204.47,2.7085505]
[1756670466618,0.04,204.52,204.44,2.7085505]
[1756670466814,0.04,204.52,204.43,7.2]
[1756670467120,101.2285505,204.53,204.43,7.2]
[1756670467519,0.04,204.52,204.43,7.2]
[1756670468219,122.62,204.51,204.43,7.2]
[1756670468414,0.02,204.5,204.43,7.2]
[1756670470828,0.02,204.5,204.43,9.9085505]
[1756670471024,122.54,204.51,204.44,7.38]
[1756670472419,122.54,204.51,204.37,6.31330898]
[1756670472420,0.02,204.5,204.41,2.7085505]
[1756670472624,0.02,204.5,204.42,7.38]
[1756670474729,0.02,204.5,204.42,10.0885505]
[1756670475130,0.02,204.5,204.42,7.38]
[1756670475330,0.02,204.5,204.42,10.0885505]
[1756670476226,0.02,204.5,204.42,7.38]
[1756670476431,125.2885505,204.51,204.42,7.38]
[1756670476627,0.02,204.47,204.37,4.0796691]
[1756670476836,0.02,204.44,204.35,7.38]
[1756670477035,0.02,204.44,204.36,7.38]
[1756670477333,5.42,204.43,204.36,7.38]
[1756670477941,8.34,204.43,204.36,7.38]
[1756670478138,0.02,204.44,204.36,7.38]
[1756670478431,0.02,204.42,204.31,7.38]
[1756670478638,4.44,204.41,204.32,10.0885505]
[1756670479336,8.1514538,204.53,204.27,4.93117024]
[1756670479337,0.02,204.45,204.36,2.7085505]
[1756670479634,0.02,204.48,204.37,7.38]
[1756670479935,41.4,204.47,204.38,2.7085505]
[1756670480134,80.64,204.46,204.39,7.38]
[1756670480336,80.66,204.46,204.39,7.38]
[1756670480838,0.02,204.46,204.39,7.38]
[1756670481039,45.04,204.45,204.39,7.38]
[1756670481736,0.02,204.46,204.39,7.38]
[1756670481940,42.28,204.46,204.39,10.0885505]
[1756670483336,84.82,204.46,204.39,7.38]
[1756670484740,0.02,204.46,204.39,7.38]
[1756670485037,43.86,204.46,204.39,10.0885505]
[1756670485439,43.86,204.46,204.39,7.38]
[1756670487643,0.02,204.46,204.39,7.38]
[1756670495552,125.76,204.47,204.37,2.7085505]
[1756670495756,125.76,204.47,204.28,5.46219311]
[1756670495757,2.7085505,204.4,204.31,7.38]
[1756670496054,0.02,204.42,204.32,7.38]
[1756670501047,0.02,204.42,204.32,2.7085505]
[1756670501250,0.02,204.42,204.33,7.35]
[1756670501655,7.5285505,204.46,204.36,7.35]
[1756670501857,0.02,204.45,204.36,7.35]
[1756670503359,4.402,204.44,204.36,11.7534]
[1756670503758,4.402,204.44,204.37,7.35]
[1756670505063,0.02,204.45,204.37,7.35]
[1756670506761,0.02,204.42,204.37,7.35]
[1756670507166,0.02,204.42,204.33,7.35]
[1756670507463,122.08,204.45,204.36,7.35]
[1756670507664,122.1,204.45,204.36,7.35]
[1756670508363,0.02,204.45,204.36,7.35]
[1756670508565,126.56,204.45,204.36,7.35]
[1756670509969,126.54,204.45,204.36,7.35]
[1756670510266,2.7085505,204.43,204.36,7.35]
[1756670511367,126.36,204.42,204.36,7.35]
[1756670513669,0.02,204.44,204.36,7.35]
[1756670513864,126.42,204.43,204.36,7.35]
[1756670514563,0.02,204.44,204.36,7.35]
[1756670514763,126.6,204.43,204.36,7.35]
[1756670515770,0.02,204.44,204.36,7.35]
[1756670515973,126.54,204.45,204.36,7.35]
[1756670516870,2.7085505,204.46,204.36,7.35]
[1756670517169,129.1685505,204.46,204.36,7.35]
[1756670518270,126.46,204.46,204.36,7.35]
[1756670518668,126.46,204.46,204.37,4.4032]
[1756670518669,0.02,204.44,204.37,4.4032]
[1756670518872,0.02,204.44,204.38,7.35]
[1756670521072,0.02,204.48,204.41,7.35]
[1756670522368,5.43430253,204.54,204.41,7.35]
[1756670522564,55.54,204.53,204.44,7.35]
[1756670524572,0.02,204.53,204.44,7.35]
[1756670525570,0.02,204.53,204.44,10.0585505]
[1756670525770,0.02,204.53,204.45,7.35]
[1756670527466,0.02,204.53,204.46,4.4014]
[1756670527467,4.4201,204.53,204.46,4.4014]
[1756670527664,4.4201,204.53,204.47,7.35]
[1756670529374,4.4003,204.52,204.45,7.43]
[1756670530472,4.4003,204.52,204.45,11.8315]
[1756670530674,4.3998,204.54,204.46,7.43]
[1756670530879,328.54,204.59,204.48,7.43]
[1756670531178,454.36,204.59,204.51,7.43]
[1756670531378,454.34,204.59,204.51,7.43]
[1756670531982,125.8,204.59,204.51,7.43]
[1756670532676,130.1988,204.59,204.51,7.43]
[1756670533883,4.399,204.58,204.51,7.43]
[1756670535682,4.399,204.58,204.51,10.1385505]
[1756670536683,125.8,204.59,204.51,10.1385505]
[1756670538078,125.8,204.59,204.51,7.43]
[1756670538289,130.1988,204.59,204.51,7.43]
[1756670539677,129.8588,204.59,204.51,7.43]
[1756670539883,4.3988,204.59,204.51,7.43]
[1756670540078,98.52,204.58,204.51,7.43]
[1756670540282,4.3988,204.59,204.51,7.43]
[1756670540582,125.5,204.58,204.51,7.43]
[1756670540783,125.5,204.58,204.51,11.8302]
[1756670540986,129.899,204.58,204.51,10.1385505]
[1756670542479,125.5,204.58,204.52,7.43]
[1756670544678,129.899,204.58,204.52,7.43]
[1756670545788,0.03,204.57,204.51,10.1385505]
[1756670546287,0.03,204.57,204.43,7.43]
[1756670546589,125.5,204.58,204.49,2.7085505]
[1756670546988,0.03,204.57,204.49,10.1385505]
[1756670547591,125.5,204.58,204.49,10.1385505]
[1756670547790,0.03,204.57,204.49,7.43]
[1756670548089,0.03,204.57,204.49,10.1385505]
[1756670548590,0.03,204.57,204.49,2.7085505]
[1756670548889,125.21,204.57,204.5,7.43]
[1756670549986,125.21,204.57,204.52,2.7085505]
[1756670550290,125.21,204.57,204.53,7.43]
[1756670550592,0.03,204.56,204.53,7.43]
[1756670550992,0.03,204.56,204.52,2.7085505]
[1756670551192,0.03,204.56,204.53,7.43]
[1756670551994,125.18,204.57,204.53,7.43]
[1756670552291,0.03,204.56,204.53,7.43]
[1756670556192,0.03,204.56,204.52,2.7085505]
[1756670556395,124.87,204.59,204.53,7.43]
[1756670556591,0.03,204.65,204.56,7.43]
[1756670556796,124.76,204.64,204.56,7.43]
[1756670560602,124.58,204.64,204.58,10.0185505]
[1756670561297,124.58,204.64,204.58,7.31]
[1756670561502,0.03,204.63,204.58,7.31]
[1756670561703,124.61,204.64,204.58,7.31]
[1756670563702,2.7085505,204.69,204.5,6.82085228]
[1756670563703,0.03,204.7,204.59,2.7085505]
[1756670563903,0.03,204.68,204.62,2.7085505]
[1756670564207,124.56,204.69,204.63,7.31]
[1756670565810,124.59,204.69,204.65,7.31]
[1756670568109,124.59,204.69,204.64,2.7085505]
[1756670568404,0.03,204.69,204.65,7.31]
[1756670569207,0.03,204.69,204.64,2.7085505]
[1756670569403,0.03,204.69,204.65,7.31]
[1756670569906,0.03,204.69,204.64,2.7085505]
[1756670571211,452.9,204.71,204.65,7.31]
[1756670571409,27.17151268,205.08,204.65,7.31]
[1756670571410,5.43430253,204.82,204.67,2.7085505]
[1756670571710,2.7085505,204.79,204.68,7.31]
[1756670572109,0.03,204.78,204.68,7.31]
[1756670573714,0.03,204.78,204.71,7.31]
[1756670573914,124.12,204.77,204.71,7.31]
[1756670579121,0.03,204.78,204.71,7.31]
[1756670579421,123.87,204.78,204.71,7.31]
[1756670581022,123.87,204.78,204.73,2.7085505]
[1756670581222,0.03,204.77,204.74,7.31]
[1756670582918,123.76,204.79,204.73,10.0185505]
[1756670583222,0.03,204.8,204.73,10.0185505]
[1756670583425,123.7,204.82,204.74,7.31]
[1756670584021,123.7,204.82,204.76,2.7085505]
[1756670584322,123.7,204.82,204.79,2.7085505]
[1756670584526,123.71,204.86,204.8,7.31]
[1756670585423,328.28,204.95,204.81,2.7085505]
[1756670585617,2.7085505,204.93,204.82,7.31]
[1756670585819,0.03,204.92,204.82,7.31]
[1756670586526,2.7085505,204.93,204.82,7.31]
[1756670586727,2.7085505,204.93,204.82,10.0185505]
[1756670587127,0.03,204.92,204.82,10.0185505]
[1756670587326,2.7085505,204.93,204.82,10.0185505]
[1756670587528,0.03,204.92,204.82,10.0185505]
[1756670587919,2.7085505,204.93,204.82,10.0185505]
[1756670589932,126.3285505,204.94,204.82,7.31]
[1756670590132,2.7085505,204.93,204.82,10.0185505]
[1756670591432,123.62,204.94,204.82,10.0185505]
[1756670591730,2.7085505,204.93,204.82,10.0185505]
[1756670591931,123.62,204.94,204.82,10.0185505]
[1756670592132,2.7085505,204.93,204.82,10.0185505]
[1756670594028,2.7085505,204.9,204.78,2.7085505]
[1756670594230,123.18,204.89,204.78,2.7085505]
[1756670594531,123.18,204.89,204.77,7.77]
[1756670594729,123.18,204.89,204.79,7.77]
[1756670596925,2.7085505,204.87,204.79,7.77]
[1756670597735,2.7085505,204.87,204.7,6.3085505]
[1756670597736,2.7085505,204.87,204.71,7.77]
[1756670597935,2.7085505,204.84,204.74,10.4785505]
[1756670598126,47.64,204.83,204.74,10.4785505]
[1756670599438,47.64,204.83,204.75,7.77]
[1756670600731,2.7085505,204.87,204.77,2.7085505]
[1756670600936,80.14,204.86,204.78,7.77]
[1756670603139,2.7085505,204.87,204.78,7.77]
[1756670603341,111.22,204.86,204.78,7.77]
[1756670608042,5.43430253,204.99,204.84,7.77]
[1756670608342,112.3,204.99,204.9,10.4785505]
[1756670608743,2.7085505,204.98,204.87,10.4785505]
[1756670610544,2.7085505,204.98,204.87,7.77]
[1756670611940,2.7085505,204.95,204.83,10.4785505]
[1756670615061,2.7085505,204.98,204.84,7.77]
[1756670615258,2.7085505,204.96,204.84,7.77]
[1756670615960,50.0,204.95,204.84,7.77]
[1756670617060,2.7085505,204.96,204.86,2.7085505]
[1756670617358,62.36,204.95,204.87,7.77]
[1756670617960,2.7085505,204.96,204.87,7.77]
[1756670618160,125.3685505,204.96,204.87,7.77]
[1756670618659,2.7085505,204.96,204.87,7.77]
[1756670618860,114.29538844,205.0,204.87,7.77]
[1756670618861,111.56963641,205.0,204.87,7.77]
[1756670619060,122.66,204.99,204.89,2.7085505]
[1756670619360,122.66,204.99,204.9,7.21]
[1756670619869,111.56963641,205.0,204.9,7.21]
[1756670620163,108.86108591,205.0,204.93,7.21]
[1756670624566,111.56963641,205.0,204.89,7.21]
[1756670626065,2.7085505,204.97,204.89,7.21]
[1756670626470,2.7085505,204.97,204.86,2.7085505]
[1756670626660,2.7085505,204.97,204.87,7.21]
[1756670627070,122.62,204.96,204.87,7.21]
[1756670628868,111.56963641,205.0,204.87,7.21]
[1756670629070,122.62,204.99,204.87,7.21]
[1756670630265,2.7085505,204.97,204.87,7.21]
[1756670634975,111.56963641,205.0,204.88,2.7085505]
[1756670635175,122.6,204.99,204.89,7.21]
[1756670640074,111.56963641,205.0,204.89,7.21]
[1756670640378,122.6,204.99,204.89,7.21]
[1756670640578,108.86108591,205.0,204.84,11.32230178]
[1756670640775,122.58,204.98,204.89,7.21]
[1756670640980,2.7085505,204.96,204.89,7.21]
[1756670646291,125.2885505,204.98,204.89,7.21]
[1756670649891,122.56,204.97,204.89,7.21]
[1756670651591,2.7085505,204.98,204.89,7.21]
[1756670651992,122.54,204.97,204.89,7.21]
[1756670661701,122.54,204.97,204.86,4.09829416]
[1756670661906,122.54,204.97,204.85,11.95829416]
[1756670662600,122.54,204.97,204.86,7.86]
[1756670663007,2.7085505,204.95,204.86,7.86]
[1756670669808,2.7085505,204.93,204.86,7.86]
[1756670670503,2.7085505,204.93,204.83,4.09829416]
[1756670670504,2.7085505,204.93,204.83,11.95829416]
[1756670670709,2.7085505,204.93,204.83,7.86]
[1756670681520,122.44,204.92,204.83,7.86]
[1756670687322,125.1485505,204.92,204.83,7.86]
[1756670689325,2.7085505,204.92,204.83,7.86]
[1756670689524,122.4,204.91,204.83,7.86]
[1756670690024,1.72973704,204.89,204.83,9.58973704]
[1756670694725,1.72973704,204.89,204.83,7.86]
[1756670699837,1.72973704,204.87,204.83,7.86]
[1756670700034,1.72973704,204.85,204.79,7.82]
[1756670700232,1.72973704,204.83,204.77,1.72973704]
[1756670700534,1.72973704,204.83,204.78,7.82]
[1756670702036,2.70413282,204.86,204.78,7.82]
[1756670704034,5.43430253,204.91,204.78,2.70413282]
[1756670704242,44.2,204.89,204.79,7.82]
[1756670716750,2.70413282,204.9,204.82,7.27]
[1756670716945,82.26413282,204.9,204.82,7.27]
[1756670717343,8.13843535,204.93,204.82,7.27]
[1756670717548,42.96,204.92,204.82,7.27]
[1756670717751,5.43430253,204.93,204.82,7.27]
[1756670717950,40.38,204.92,204.82,7.27]
[1756670722058,1.72937433,204.91,204.85,1.72937433]
[1756670722663,1.72937433,204.91,204.86,7.27]
[1756670722860,1.72937433,204.95,204.89,1.72937433]
[1756670723160,123.88937433,204.95,204.89,1.72937433]
[1756670725467,122.16,204.94,204.89,1.72937433]
[1756670725666,122.16,204.94,204.89,8.99937433]
[1756670726864,122.16,204.94,204.89,7.27]
[1756670727057,1.72937433,204.93,204.87,1.72937433]
[1756670727253,1.72937433,204.93,204.87,8.99937433]
[1756670730564,122.16,204.94,204.87,8.99937433]
[1756670730770,1.72937433,204.93,204.87,8.99937433]
[1756670732868,122.16,204.94,204.87,8.99937433]
[1756670733166,1.72937433,204.93,204.87,8.99937433]
[1756670734561,122.16,204.94,204.89,1.72937433]
[1756670734760,122.16,204.94,204.9,7.27]
[1756670735260,1.72937433,204.95,204.9,7.27]
[1756670735566,122.04,204.94,204.9,7.27]
[1756670735866,1.72937433,204.95,204.9,7.27]
[1756670736266,122.04,204.94,204.9,7.27]
[1756670738866,1.72937433,204.95,204.9,7.95]
[1756670739069,122.02,204.93,204.9,7.95]
[1756670740567,1.72937433,204.95,204.9,7.95]
[1756670740960,122.0,204.94,204.9,7.95]
[1756670741162,1.72937433,204.95,204.9,7.95]
[1756670741369,122.0,204.93,204.9,7.95]
[1756670741564,121.98,204.92,204.89,9.67937433]
[1756670741770,121.98,204.92,204.9,7.95]
[1756670742266,121.98,204.92,204.89,1.72937433]
[1756670742467,121.98,204.92,204.9,7.95]
[1756670742660,121.98,204.92,204.89,1.72937433]
[1756670743260,121.98,204.92,204.9,7.95]
[1756670744067,1.72937433,204.95,204.9,7.95]
[1756670744267,114.96,204.94,204.9,7.95]
[1756670745968,1.72937433,204.95,204.89,1.72937433]
[1756670745969,121.94,204.93,204.89,1.72937433]
[1756670746369,121.94,204.93,204.9,7.95]
[1756670746669,1.72937433,204.95,204.89,1.72937433]
[1756670746869,121.94,204.94,204.89,1.72937433]
[1756670747061,121.94,204.94,204.9,7.95]
[1756670747261,121.94,204.94,204.89,1.72937433]
[1756670747663,121.94,204.94,204.9,7.95]
[1756670748071,121.94,204.94,204.89,1.72937433]
[1756670748475,121.94,204.94,204.9,7.95]
[1756670748667,121.94,204.94,204.89,1.72937433]
[1756670749774,110.93509439,204.97,204.9,7.95]
[1756670749972,121.9,204.94,204.89,1.72937433]
[1756670750466,121.9,204.94,204.9,7.95]
[1756670751071,121.9,204.94,204.92,7.95]
[1756670751269,121.9,204.95,204.91,1.72937433]
[1756670751468,121.9,204.96,204.93,1.72937433]
[1756670751672,1.72937433,204.99,204.93,1.72937433]
[1756670751872,121.88,204.98,204.94,7.95]
[1756670752081,1.72937433,205.01,204.95,1.72937433]
[1756670752280,121.88,204.99,204.96,7.95]
[1756670752473,121.88,204.99,204.98,7.95]
[1756670752980,328.02,205.02,204.98,7.95]
[1756670753177,121.88,205.01,204.98,7.95]
[1756670753381,121.88,205.01,204.99,4.5137973]
[1756670753581,121.88,205.01,205.0,4.5137973]
[1756670755684,328.02,205.02,205.0,4.50776722]
[1756670755881,328.02,205.02,205.01,4.50776722]
[1756670756184,449.86,205.02,205.01,4.50776722]
[1756670758793,5.43430253,205.09,205.02,7.95]
[1756670758985,15.78,205.08,205.03,6.23714155]
[1756670759187,15.78,205.07,205.04,4.50776722]
[1756670759494,15.78,205.07,205.05,4.50776722]
[1756670759693,15.78,205.07,205.06,4.50776722]
[1756670762794,1.72937433,205.09,205.06,4.50776722]
[1756670763095,47.68,205.07,205.03,9.67937433]
[1756670763299,47.68,205.07,205.04,4.45963253]
[1756670763492,47.68,205.07,205.05,4.45963253]
[1756670763699,5.43430253,205.15,205.06,4.45963253]
[1756670763896,1.72937433,205.08,205.07,4.45963253]
[1756670764093,123.46937433,205.08,205.07,4.45963253]
[1756670765296,123.46937433,205.08,204.98,7.95]
[1756670765297,123.44937433,205.08,205.01,1.72937433]
[1756670765600,123.44937433,205.08,205.02,4.45809246]
[1756670765794,123.44937433,205.08,205.03,4.45809246]
[1756670766001,1.72937433,205.08,205.04,4.45809246]
[1756670766198,121.72,205.07,205.05,4.45809246]
[1756670766399,121.7,205.07,205.06,4.45809246]
[1756670767803,121.7,205.08,205.06,4.45809246]
[1756670768001,121.7,205.08,205.07,4.45809246]
[1756670768903,1.72937433,205.1,205.07,4.45809246]
[1756670769104,121.68,205.09,205.03,1.72937433]
[1756670769306,121.68,205.09,205.04,4.4551498]
[1756670769505,121.68,205.09,205.05,4.4551498]
[1756670769701,121.68,205.09,205.06,4.4551498]
[1756670770003,121.68,205.09,205.07,4.4551498]
[1756670770205,121.68,205.09,205.03,1.72937433]
[1756670770405,121.68,205.09,205.04,11.76427734]
[1756670770604,121.68,205.09,205.05,4.45427734]
[1756670770904,121.68,205.09,205.06,4.45427734]
[1756670771106,121.68,205.09,205.07,4.45427734]
[1756670771301,121.68,205.09,205.03,1.72937433]
[1756670771507,1.72937433,205.12,205.06,7.31]
[1756670771701,121.66,205.11,205.07,11.76366833]
[1756670771907,121.66,205.11,205.08,4.45366833]
[1756670772108,121.66,205.11,205.09,4.45366833]
[1756670772300,121.66,205.11,205.1,4.45366833]
[1756670772502,121.66,205.11,205.1,4.45175544]
[1756670774912,109.4967396,205.14,205.1,4.45175544]
[1756670775107,121.6,205.13,205.11,4.45175544]
[1756670775306,121.6,205.13,205.12,4.45175544]
[1756670776109,121.6,205.13,205.12,4.44848916]
[1756670779908,109.4967396,205.14,205.12,4.44848916]
[1756670780107,109.4967396,205.14,205.13,4.44848916]
[1756670780309,231.0367396,205.14,205.13,4.44848916]
[1756670781005,232.76611393,205.14,205.13,4.44848916]
[1756670781306,232.76611393,205.14,205.07,1.72937433]
[1756670781510,232.76611393,205.14,205.08,4.44230322]
[1756670781814,232.76611393,205.14,205.07,1.72937433]
[1756670781815,232.76611393,205.14,205.09,4.44230322]
[1756670782113,232.76611393,205.14,205.1,4.44230322]
[1756670782313,232.76611393,205.14,205.11,4.44230322]
[1756670782513,232.76611393,205.14,205.12,4.44230322]
[1756670782714,232.76611393,205.14,205.07,1.72937433]
[1756670782914,232.76611393,205.14,205.08,4.44255417]
[1756670783114,232.76611393,205.14,205.09,4.44255417]
[1756670783420,232.76611393,205.14,205.1,4.44255417]
[1756670783615,232.76611393,205.14,205.11,4.44255417]
[1756670783814,232.76611393,205.14,205.12,4.44255417]
[1756670784015,111.22611393,205.14,205.13,4.44255417]
[1756670784316,232.72611393,205.14,205.13,4.44255417]
[1756670785814,232.70611393,205.14,205.13,4.44255417]
[1756670786410,230.9767396,205.14,205.13,4.44255417]
[1756670786816,230.9767396,205.14,205.09,1.72937433]
[1756670787018,230.9767396,205.14,205.1,4.44395568]
[1756670787217,230.9767396,205.14,205.11,4.44395568]
[1756670787418,230.9767396,205.14,205.12,4.44484476]
[1756670787617,230.9767396,205.14,205.13,4.44484476]
[1756670789317,230.9567396,205.14,205.13,4.44484476]
[1756670789613,232.68611393,205.14,205.13,4.44484476]
[1756670790611,232.68611393,205.14,205.13,4.36912029]
[1756670791116,111.22611393,205.14,205.13,4.36912029]
[1756670791316,232.66611393,205.14,205.13,4.36912029]
[1756670792119,230.9367396,205.14,205.13,4.36912029]
[1756670792522,109.4967396,205.14,205.13,4.36912029]
[1756670792715,5.43430253,205.24,205.13,4.36912029]
[1756670792921,123.14937433,205.18,205.14,4.36912029]
[1756670793123,121.42,205.18,205.15,4.36912029]
[1756670793421,121.42,205.18,205.13,9.03937433]
[1756670793722,121.42,205.18,205.14,11.67567203]
[1756670793922,121.42,205.18,205.15,4.36567203]
[1756670794121,121.42,205.18,205.13,1.72937433]
[1756670794321,121.42,205.18,205.14,11.67551589]
[1756670794522,327.94,205.19,205.15,13.40489022]
[1756670794716,327.94,205.19,205.16,4.36551589]
[1756670794717,121.4,205.18,205.16,4.36551589]
[1756670794920,121.4,205.18,205.17,4.36551589]
[1756670796524,327.94,205.19,205.17,4.36551589]
[1756670796726,327.94,205.19,205.18,4.36551589]
[1756670796923,449.32,205.19,205.18,4.36551589]
[1756670797626,449.32,205.19,205.15,9.03937433]
[1756670797825,449.32,205.19,205.16,11.67939775]
[1756670798022,327.94,205.19,205.17,12.11939775]
[1756670798224,121.36,205.18,205.17,7.75]
[1756670798427,121.36,205.18,205.17,12.1194153]
[1756670799827,121.36,205.18,205.17,4.3694153]
[1756670801425,121.32,205.18,205.17,12.1194153]
[1756670801725,121.32,205.18,205.17,4.3694153]
[1756670802633,327.94,205.19,205.17,4.3694153]
[1756670802926,327.94,205.19,205.18,4.3694153]
[1756670803131,449.24,205.19,205.18,4.3694153]
[1756670807138,449.2,205.19,205.18,4.3694153]
[1756670808537,449.2,205.19,205.18,4.36953861]
[1756670811937,327.94,205.19,205.18,4.36953861]
[1756670812134,449.16,205.19,205.18,4.36953861]
[1756670817140,121.22,205.19,205.18,4.36953861]
[1756670819640,121.22,205.19,205.18,4.37711383]
[1756670822949,123.91503951,205.19,205.18,4.37711383]
[1756670823650,124.39503951,205.19,205.06,7.75]
[1756670823870,2.69503951,205.15,205.06,7.75]
[1756670824056,95.24,205.14,205.06,7.75]
[1756670824948,102.24,205.13,205.09,7.75]
[1756670826050,102.24,205.13,205.12,1.725079]
[1756670826246,102.24,205.13,205.12,9.475079]
[1756670826751,1.725079,205.18,205.12,9.475079]
[1756670826952,33.54,205.17,205.08,7.75]
[1756670827151,1.725079,205.16,205.11,1.725079]
[1756670827451,33.54,205.17,205.11,1.725079]
[1756670827649,1.725079,205.16,205.11,1.725079]
[1756670827850,1.725079,205.16,205.11,9.475079]
[1756670828050,33.54,205.17,205.11,7.75]
[1756670828461,33.54,205.17,205.07,7.75]
[1756670830049,2.69580396,205.16,205.04,7.75]
[1756670832150,2.69580396,205.13,205.04,7.75]
[1756670833345,2.69580396,205.1,205.04,7.75]
[1756670833551,31.62,205.09,205.04,7.75]
[1756670833953,5.43430253,205.18,205.05,2.69580396]
[1756670834153,38.88,205.17,205.09,7.75]
[1756670834355,2.69580396,205.2,205.1,4.724657]
[1756670834555,75.82,205.16,205.11,4.724657]
[1756670834749,75.82,205.16,205.12,4.724657]
[1756670835054,2.69580396,205.2,205.14,7.75]
[1756670835245,80.98,205.19,205.15,4.724657]
[1756670835443,80.98,205.19,205.16,4.724657]
[1756670835652,2.69580396,205.2,205.17,4.724657]
[1756670835944,121.02,205.19,205.18,4.724657]
[1756670836251,121.02,205.19,205.14,7.75]
[1756670836443,121.02,205.19,205.15,4.72166747]
[1756670836650,121.02,205.19,205.16,4.72166747]
[1756670836850,121.02,205.19,205.17,4.72166747]
[1756670837047,121.02,205.19,205.18,4.72166747]
[1756670837649,5.43430253,205.24,205.18,4.72166747]
[1756670837855,5.43430253,205.25,205.19,4.72166747]
[1756670838053,123.71580396,205.24,205.2,4.72166747]